[Event "6e festival d'échecs d'Allauch"]
[Site "Allauch, France"]
[Date "2024.08.29"]
[Round "7.6"]
[White "Anton, Christophe"]
[Black "Madi, Chahinez"]
[Result "0-1"]
[TimeControl "1 h 30 min (+30s/coup)"]
[WhiteElo "1697"]
[BlackElo "1668"]

1. e4 {[%clk 01:30:58]} {[%emt 00:00:01]} c5 {[%clk 01:30:53]} {[%emt
00:00:08]} 2. Nc3 {[%clk 01:31:24]} {[%emt 00:00:04]} d6 {[%clk 01:30:58]}
{[%emt 00:00:25]} 3. Nge2 {[%clk 01:31:50]} {[%emt 00:00:05]} Nf6 {[%clk
01:29:15]} {[%emt 00:02:14]} 4. d4 {[%clk 01:32:07]} {[%emt 00:00:12]} cxd4
{[%clk 01:28:46]} {[%emt 00:00:59]} 5. Nxd4 {[%clk 01:32:33]} {[%emt 00:00:05]}
a6 {[%clk 01:29:00]} {[%emt 00:00:16]} 6. Be2 {[%clk 01:32:42]} {[%emt
00:00:20]} e5 {[%clk 01:27:40]} {[%emt 00:01:51]} 7. Nb3 {[%clk 01:32:32]}
{[%emt 00:00:41]} Be6 {[%clk 01:27:52]} {[%emt 00:00:18]} 8. Bg5 {[%clk
01:32:32]} {[%emt 00:00:29]} Be7 {[%clk 01:27:41]} {[%emt 00:00:42]} 9. Bxf6
{[%clk 01:31:25]} {[%emt 00:01:37]} Bxf6 {[%clk 01:27:47]} {[%emt 00:00:23]} 10.
Nd5 {[%clk 01:31:50]} {[%emt 00:00:05]} Bxd5 {[%clk 01:21:44]} {[%emt
00:06:33]} 11. Qxd5 {[%clk 01:31:10]} {[%emt 00:01:11]} Nc6 {[%clk 01:21:36]}
{[%emt 00:00:37]} 12. c3 {[%clk 01:27:04]} {[%emt 00:04:36]} O-O {[%clk
01:18:14]} {[%emt 00:03:52]} 13. Rd1 {[%clk 01:27:10]} {[%emt 00:00:24]} Be7
{[%clk 01:17:45]} {[%emt 00:00:59]} 14. Nd2 {[%clk 01:25:17]} {[%emt 00:02:24]}
Qc7 {[%emt 00:02:59]} 15. O-O {[%clk 01:23:19]} {[%emt 00:02:25]} Rad8 {[%clk
01:13:41]} {[%emt 00:02:06]} 16. Nc4 {[%clk 01:21:11]} {[%emt 00:02:39]} b5
{[%clk 01:09:01]} {[%emt 00:05:05]} 17. Ne3 {[%clk 01:20:06]} {[%emt 00:01:39]}
Bg5 {[%clk 01:07:30]} {[%emt 00:02:00]} 18. Rd3 {[%clk 01:10:57]} {[%emt
00:09:41]} Bxe3 {[%clk 00:54:13]} {[%emt 00:13:47]} 19. Rxe3 {[%clk 01:11:06]}
{[%emt 00:00:21]} Ne7 {[%clk 00:54:27]} {[%emt 00:00:16]} 20. Qd2 {[%clk
01:10:38]} {[%emt 00:00:58]} d5 {[%clk 00:54:26]} {[%emt 00:00:31]} 21. exd5
{[%clk 00:56:37]} {[%emt 00:14:31]} Nxd5 {[%clk 00:48:18]} {[%emt 00:06:38]} 22.
Rd3 {[%clk 00:56:10]} {[%emt 00:00:57]} Nf4 {[%clk 00:48:02]} {[%emt 00:00:46]}
23. Rxd8 {[%clk 00:56:11]} {[%emt 00:00:29]} Rxd8 {[%clk 00:47:07]} {[%emt
00:01:25]} 24. Qe3 {[%clk 00:54:45]} {[%emt 00:01:56]} Nxe2+ {[%clk 00:44:11]}
{[%emt 00:03:26]} 25. Qxe2 {[%clk 00:55:11]} {[%emt 00:00:04]} Qd6 {[%clk
00:44:06]} {[%emt 00:00:34]} 26. Re1 {[%clk 00:54:32]} {[%emt 00:01:09]} f6
{[%clk 00:43:53]} {[%emt 00:00:43]} 27. f4 {[%clk 00:51:16]} {[%emt 00:03:47]}
exf4 {[%clk 00:35:44]} {[%emt 00:08:39]} 28. Qe6+ {[%clk 00:51:32]} {[%emt
00:00:14]} Qxe6 {[%clk 00:35:56]} {[%emt 00:00:18]} 29. Rxe6 {[%clk 00:51:57]}
{[%emt 00:00:04]} Rd1+ {[%clk 00:34:31]} {[%emt 00:01:56]} 30. Kf2 {[%clk
00:52:21]} {[%emt 00:00:06]} Rd2+ {[%clk 00:34:44]} {[%emt 00:00:16]} 31. Kf3
{[%clk 00:51:56]} {[%emt 00:00:55]} Rxb2 {[%clk 00:33:58]} {[%emt 00:01:16]} 32.
Rxa6 {[%clk 00:52:18]} {[%emt 00:00:08]} b4 {[%clk 00:30:36]} {[%emt 00:03:52]}
33. cxb4 {[%clk 00:49:33]} {[%emt 00:03:16]} Rxb4 {[%clk 00:30:49]} {[%emt
00:00:16]} 34. a4 {[%clk 00:49:50]} {[%emt 00:00:13]} Kf7 {[%clk 00:29:25]}
{[%emt 00:01:54]} 35. a5 {[%clk 00:50:13]} {[%emt 00:00:08]} Ra4 {[%clk
00:29:23]} {[%emt 00:00:25]} 36. Ra8 {[%clk 00:50:27]} {[%emt 00:00:24]} Kg6
{[%clk 00:29:28]} {[%emt 00:00:25]} 37. a6 {[%clk 00:50:51]} {[%emt 00:00:07]}
Kh6 {[%clk 00:28:39]} {[%emt 00:01:19]} 38. a7 {[%clk 00:48:07]} {[%emt
00:03:14]} g5 {[%clk 00:24:29]} {[%emt 00:04:40]} 39. h3 {[%clk 00:47:49]}
{[%emt 00:00:49]} f5 {[%clk 00:22:19]} {[%emt 00:02:39]} 40. Rf8 {[%clk
00:42:35]} {[%emt 00:05:44]} Ra3+ {[%clk 00:21:32]} {[%emt 00:01:17]} 41. Kf2
{[%clk 00:42:49]} {[%emt 00:00:16]} Rxa7 {[%clk 00:21:35]} {[%emt 00:00:27]} 42.
Rxf5 {[%clk 00:43:14]} {[%emt 00:00:06]} Kh5 {[%clk 00:20:02]} {[%emt
00:02:03]} 43. Re5 {[%clk 00:42:32]} {[%emt 00:01:12]} Kh4 {[%clk 00:18:16]}
{[%emt 00:02:15]} 44. Re6 {[%clk 00:40:23]} {[%emt 00:02:38]} Ra2+ {[%clk
00:16:07]} {[%emt 00:02:39]} 45. Kf3 {[%clk 00:40:34]} {[%emt 00:00:20]} Ra3+
{[%clk 00:16:03]} {[%emt 00:00:34]} 46. Kf2 {[%clk 00:40:48]} {[%emt 00:00:16]}
h5 {[%clk 00:14:29]} {[%emt 00:02:04]} 47. Re4 {[%clk 00:39:33]} {[%emt
00:01:45]} Re3 {[%clk 00:11:05]} {[%emt 00:03:54]} 48. Rd4 {[%clk 00:30:13]}
{[%emt 00:09:48]} Ra3 {[%clk 00:09:17]} {[%emt 00:02:18]} 49. Re4 {[%clk
00:30:30]} {[%emt 00:00:16]} Ra2+ {[%clk 00:09:02]} {[%emt 00:00:45]} 50. Kf3
{[%clk 00:30:49]} {[%emt 00:00:10]} g4+ {[%clk 00:07:41]} {[%emt 00:01:52]} 51.
hxg4 {[%clk 00:31:11]} {[%emt 00:00:08]} hxg4+ {[%clk 00:07:35]} {[%emt
00:00:36]} 52. Kxf4 {[%clk 00:31:36]} {[%emt 00:00:04]} Rxg2 {[%clk 00:07:34]}
{[%emt 00:00:31]} 53. Re8 {[%clk 00:31:22]} {[%emt 00:00:45]} Rf2+ {[%clk
00:07:39]} {[%emt 00:00:25]} 54. Ke3 {[%clk 00:31:44]} {[%emt 00:00:08]} Kg3
{[%clk 00:07:01]} {[%emt 00:01:08]} 55. Rg8 {[%clk 00:31:06]} {[%emt 00:01:07]}
Ra2 {[%clk 00:06:58]} {[%emt 00:00:32]} 56. Rg7 {[%clk 00:30:10]} {[%emt
00:01:27]} Ra4 {[%clk 00:07:07]} {[%emt 00:00:22]} 57. Ke2 {[%clk 00:29:50]}
{[%emt 00:00:50]} Kg2 {[%clk 00:07:20]} {[%emt 00:00:16]} 58. Ke3 {[%clk
00:29:08]} {[%emt 00:01:13]} g3 {[%clk 00:06:43]} {[%emt 00:01:07]} 59. Rg6
{[%clk 00:28:03]} {[%emt 00:01:36]} Ra3+ {[%clk 00:06:43]} {[%emt 00:00:29]} 60.
Ke2 {[%clk 00:28:22]} {[%emt 00:00:12]} Kg1 {[%clk 00:06:25]} {[%emt 00:00:47]}
61. Rg8 {[%clk 00:28:00]} {[%emt 00:00:52]} g2 {[%clk 00:05:34]} {[%emt
00:01:22]} 62. Rd8 Kh2 {[%clk 00:05:34]} 0-1

[Event "6e festival d'échecs d'Allauch"]
[Site "Allauch, France"]
[Date "2024.08.29"]
[Round "7.7"]
[White "Dorvaux-Valdieu, Teiva"]
[Black "Arlot, Bastien"]
[Result "1/2-1/2"]
[TimeControl "1 h 30 min (+30s/coup)"]
[WhiteElo "1679"]
[BlackElo "1557"]

1. d4 {[%clk 01:30:58]} {[%emt 00:00:02]} d5 {[%clk 01:30:59]} {[%emt
00:00:02]} 2. Nf3 {[%clk 01:31:22]} {[%emt 00:00:06]} Nf6 {[%clk 01:31:26]}
{[%emt 00:00:04]} 3. e3 {[%clk 01:31:48]} {[%emt 00:00:03]} c5 {[%clk
01:31:46]} {[%emt 00:00:11]} 4. b3 {[%clk 01:32:11]} {[%emt 00:00:07]} cxd4
{[%clk 01:32:05]} {[%emt 00:00:10]} 5. exd4 {[%clk 01:32:34]} {[%emt 00:00:07]}
Nc6 {[%clk 01:32:21]} {[%emt 00:00:14]} 6. a3 {[%clk 01:32:00]} {[%emt
00:01:04]} Bf5 {[%clk 01:31:34]} {[%emt 00:01:17]} 7. Bd3 {[%clk 01:30:04]}
{[%emt 00:02:26]} Bxd3 {[%clk 01:31:53]} {[%emt 00:00:11]} 8. Qxd3 {[%clk
01:30:28]} {[%emt 00:00:06]} e6 {[%clk 01:31:26]} {[%emt 00:00:57]} 9. Bb2
{[%clk 01:30:30]} {[%emt 00:00:27]} Be7 {[%clk 01:31:30]} {[%emt 00:00:26]} 10.
Nbd2 {[%clk 01:30:49]} {[%emt 00:00:11]} O-O {[%clk 01:30:44]} {[%emt
00:01:16]} 11. O-O {[%clk 01:31:06]} {[%emt 00:00:13]} Qc7 {[%clk 01:28:15]}
{[%emt 00:03:00]} 12. Ne5 {[%clk 01:29:54]} {[%emt 00:01:42]} Nxe5 {[%clk
01:23:07]} {[%emt 00:05:39]} 13. dxe5 {[%clk 01:29:33]} {[%emt 00:00:50]} Nd7
{[%clk 01:23:04]} {[%emt 00:00:33]} 14. f4 {[%clk 01:28:38]} {[%emt 00:01:24]}
Rac8 {[%clk 01:17:17]} {[%emt 00:06:18]} 15. Rac1 {[%clk 01:27:23]} {[%emt
00:01:45]} Rfd8 {[%clk 01:14:21]} {[%emt 00:03:26]} 16. Nf3 {[%clk 01:20:38]}
{[%emt 00:07:15]} Nc5 {[%clk 01:08:47]} {[%emt 00:06:04]} 17. Qe2 {[%clk
01:19:06]} {[%emt 00:01:57]} Ne4 {[%clk 01:05:05]} {[%emt 00:04:17]} 18. Nd4
{[%clk 01:12:14]} {[%emt 00:07:22]} Nc3 {[%clk 00:59:52]} {[%emt 00:05:43]} 19.
Qd3 {[%clk 01:10:55]} {[%emt 00:01:49]} Ne4 {[%clk 00:52:49]} {[%emt 00:07:33]}
20. b4 {[%clk 01:02:21]} {[%emt 00:09:04]} a5 {[%clk 00:49:24]} {[%emt
00:03:52]} 21. c4 {[%clk 00:59:49]} {[%emt 00:03:05]} axb4 {[%clk 00:46:07]}
{[%emt 00:03:48]} 22. cxd5 {[%clk 00:51:43]} {[%emt 00:08:35]} Nc5 {[%clk
00:42:14]} {[%emt 00:04:23]} 23. Qb5 {[%clk 00:46:13]} {[%emt 00:06:00]} bxa3
{[%clk 00:30:04]} {[%emt 00:12:39]} 24. d6 {[%clk 00:45:35]} {[%emt 00:01:10]}
Bxd6 {[%clk 00:28:04]} {[%emt 00:02:30]} 25. exd6 {[%clk 00:41:04]} {[%emt
00:05:01]} Qxd6 {[%clk 00:27:56]} {[%emt 00:00:03]} 1/2-1/2

[Event "6e festival d'échecs d'Allauch"]
[Site "Allauch, France"]
[Date "2024.08.29"]
[Round "7.8"]
[White "Caruncho, Alfonso"]
[Black "Barthel, Jean"]
[Result "1-0"]
[TimeControl "1 h 30 min (+30s/coup)"]
[WhiteElo "1600"]
[BlackElo "1520"]

1. c4 {[%clk 01:30:48]} {[%emt 00:00:12]} e5 {[%clk 01:30:47]} {[%emt
00:00:14]} 2. Nc3 {[%clk 01:31:07]} {[%emt 00:00:12]} d6 {[%clk 01:30:37]}
{[%emt 00:00:40]} 3. Nf3 {[%clk 01:30:55]} {[%emt 00:00:42]} Be6 {[%clk
01:30:36]} {[%emt 00:00:33]} 4. e4 {[%clk 01:30:11]} {[%emt 00:01:12]} Ne7
{[%clk 01:28:29]} {[%emt 00:02:38]} 5. d4 {[%clk 01:28:48]} {[%emt 00:01:51]}
exd4 {[%clk 01:27:39]} {[%emt 00:01:21]} 6. Nxd4 {[%clk 01:28:51]} {[%emt
00:00:27]} Nbc6 {[%clk 01:27:55]} {[%emt 00:00:14]} 7. Nxe6 {[%clk 01:25:52]}
{[%emt 00:03:29]} fxe6 {[%clk 01:28:15]} {[%emt 00:00:10]} 8. Be2 {[%clk
01:23:33]} {[%emt 00:02:49]} g6 {[%clk 01:26:45]} {[%emt 00:02:01]} 9. Bg4
{[%clk 01:22:25]} {[%emt 00:01:37]} Ne5 {[%clk 01:22:20]} {[%emt 00:04:55]} 10.
Bxe6 {[%clk 01:22:09]} {[%emt 00:00:46]} N7c6 {[%clk 01:21:00]} {[%emt
00:01:46]} 11. a3 {[%clk 01:12:58]} {[%emt 00:09:45]} Qf6 {[%clk 01:16:49]}
{[%emt 00:04:42]} 12. Nd5 {[%clk 01:11:41]} {[%emt 00:01:47]} Qg7 {[%clk
01:15:46]} {[%emt 00:01:27]} 13. Bg5 {[%clk 01:10:52]} {[%emt 00:01:24]} Nd7
{[%clk 01:13:25]} {[%emt 00:02:40]} 14. Nxc7# {[%clk 01:11:10]} {[%emt
00:00:23]} 1-0

[Event "6e festival d'échecs d'Allauch"]
[Site "Allauch, France"]
[Date "2024.08.30"]
[Round "8.1"]
[White "Philippe, Guillaume"]
[Black "Degraeve, Remy"]
[Result "1/2-1/2"]
[TimeControl "1 h 30 min (+30s/coup)"]
[WhiteElo "2356"]
[BlackElo "2402"]

1. e4 {[%clk 01:30:56]} {[%emt 00:00:02]} e5 {[%clk 01:29:42]} {[%emt
00:01:20]} 2. Nf3 {[%clk 01:31:19]} {[%emt 00:00:07]} Nc6 {[%clk 01:30:08]}
{[%emt 00:00:01]} 3. Bb5 {[%clk 01:31:43]} {[%emt 00:00:07]} a6 {[%clk
01:30:33]} {[%emt 00:00:06]} 4. Bxc6 {[%clk 01:32:03]} {[%emt 00:00:10]} dxc6
{[%clk 01:30:57]} {[%emt 00:00:06]} 5. O-O {[%clk 01:32:27]} {[%emt 00:00:06]}
Qf6 {[%clk 01:31:10]} {[%emt 00:00:17]} 6. d4 {[%clk 01:32:37]} {[%emt
00:00:20]} exd4 {[%clk 01:31:25]} {[%emt 00:00:15]} 7. Bg5 {[%clk 01:33:00]}
{[%emt 00:00:07]} Qd6 {[%clk 01:31:46]} {[%emt 00:00:10]} 8. Nxd4 {[%clk
01:33:22]} {[%emt 00:00:07]} Be7 {[%clk 01:32:10]} {[%emt 00:00:07]} 9. Be3
{[%clk 01:33:42]} {[%emt 00:00:08]} Nf6 {[%clk 01:31:50]} {[%emt 00:00:50]} 10.
f3 {[%clk 01:31:38]} {[%emt 00:02:35]} c5 {[%clk 01:32:13]} {[%emt 00:00:07]}
11. Ne2 {[%clk 01:31:48]} {[%emt 00:00:19]} Be6 {[%clk 01:32:34]} {[%emt
00:00:10]} 12. Nbc3 {[%clk 01:29:26]} {[%emt 00:02:52]} O-O-O {[%clk 01:32:19]}
{[%emt 00:00:45]} 13. Qxd6 {[%clk 01:28:40]} {[%emt 00:01:16]} cxd6 {[%clk
01:31:24]} {[%emt 00:01:25]} 14. Nf4 {[%clk 01:27:30]} {[%emt 00:01:40]} d5
{[%clk 01:17:18]} {[%emt 00:14:36]} 15. exd5 {[%clk 01:27:47]} {[%emt
00:00:13]} Nxd5 {[%clk 01:16:17]} {[%emt 00:01:31]} 16. Nfxd5 {[%clk 01:28:02]}
{[%emt 00:00:16]} Bxd5 {[%clk 01:16:42]} {[%emt 00:00:05]} 17. Nxd5 {[%clk
01:28:27]} {[%emt 00:00:06]} Rxd5 {[%clk 01:17:09]} {[%emt 00:00:02]} 18. Rad1
{[%clk 01:27:50]} {[%emt 00:01:06]} Rhd8 {[%clk 01:17:34]} {[%emt 00:00:05]} 19.
Rxd5 {[%clk 01:28:09]} {[%emt 00:00:12]} Rxd5 {[%clk 01:18:00]} 20. Kf2 {[%clk
01:28:19]} {[%emt 00:00:23]} c4 {[%clk 01:16:24]} {[%emt 00:02:08]} 21. b3
{[%clk 01:23:43]} {[%emt 00:05:03]} b5 {[%clk 01:13:56]} {[%emt 00:03:00]} 22.
bxc4 {[%clk 01:07:54]} {[%emt 00:16:20]} bxc4 {[%clk 01:12:48]} {[%emt
00:01:38]} 23. Rb1 {[%clk 01:08:11]} {[%emt 00:00:13]} Ra5 {[%clk 01:05:36]}
{[%emt 00:07:42]} 24. Rb6 {[%clk 01:07:55]} {[%emt 00:00:45]} Ra4 {[%clk
00:59:39]} {[%emt 00:06:27]} 25. Bd4 {[%clk 01:04:56]} {[%emt 00:03:24]} a5
{[%clk 00:52:09]} {[%emt 00:08:05]} 26. Ke3 {[%clk 01:00:10]} {[%emt 00:05:14]}
g6 {[%clk 00:44:27]} {[%emt 00:08:15]} 27. h3 {[%clk 00:54:40]} {[%emt
00:05:59]} Rxa2 {[%clk 00:04:42]} {[%emt 00:40:15]} 28. Rc6+ {[%clk 00:54:33]}
{[%emt 00:00:37]} 1/2-1/2

[Event "6e festival d'échecs d'Allauch"]
[Site "Allauch, France"]
[Date "2024.08.30"]
[Round "8.2"]
[White "Durand-Benmoussa, Roman"]
[Black "Charvein, Gabriel"]
[Result "1-0"]
[TimeControl "1 h 30 min (+30s/coup)"]
[WhiteElo "2109"]
[BlackElo "2011"]

1. e4 {[%clk 01:30:55]} {[%emt 00:00:05]} c5 {[%clk 01:30:55]} {[%emt
00:00:05]} 2. Nf3 {[%clk 01:31:22]} {[%emt 00:00:04]} d6 {[%clk 01:31:21]}
{[%emt 00:00:04]} 3. d4 {[%clk 01:31:48]} {[%emt 00:00:03]} cxd4 {[%clk
01:31:46]} {[%emt 00:00:04]} 4. Nxd4 {[%clk 01:32:16]} {[%emt 00:00:03]} Nf6
{[%clk 01:32:09]} {[%emt 00:00:08]} 5. Nc3 {[%clk 01:32:43]} {[%emt 00:00:02]}
g6 {[%clk 01:32:34]} {[%emt 00:00:05]} 6. Be3 {[%clk 01:33:09]} {[%emt
00:00:04]} Nc6 {[%clk 01:33:00]} {[%emt 00:00:05]} 7. f3 {[%clk 01:33:29]}
{[%emt 00:00:12]} h5 {[%clk 01:33:22]} {[%emt 00:00:07]} 8. Bc4 {[%clk
01:33:05]} {[%emt 00:00:52]} Bd7 {[%clk 01:33:46]} {[%emt 00:00:06]} 9. Qd2
{[%clk 01:33:31]} {[%emt 00:00:05]} Nxd4 {[%clk 01:34:06]} {[%emt 00:00:11]} 10.
Qxd4 {[%clk 01:33:43]} {[%emt 00:00:17]} Bg7 {[%clk 01:34:19]} {[%emt
00:00:16]} 11. O-O-O {[%clk 01:34:07]} {[%emt 00:00:07]} O-O {[%clk 01:33:04]}
{[%emt 00:01:45]} 12. Qd3 {[%clk 01:34:29]} {[%emt 00:00:08]} Qa5 {[%clk
01:14:52]} {[%emt 00:18:43]} 13. Bb3 {[%clk 01:34:14]} {[%emt 00:00:45]} Rfc8
{[%clk 01:08:37]} {[%emt 00:06:44]} 14. Kb1 {[%clk 01:25:16]} {[%emt 00:09:29]}
b5 {[%clk 00:54:57]} {[%emt 00:14:10]} 15. h3 {[%clk 01:18:34]} {[%emt
00:07:13]} b4 {[%clk 00:48:42]} {[%emt 00:06:45]} 16. Ne2 {[%clk 00:58:43]}
{[%emt 00:20:20]} Bb5 {[%clk 00:39:03]} {[%emt 00:10:09]} 17. Qd2 {[%clk
00:57:38]} {[%emt 00:01:35]} Bc4 {[%clk 00:39:20]} {[%emt 00:00:13]} 18. g4
{[%clk 00:56:03]} {[%emt 00:02:05]} Bxb3 {[%clk 00:36:21]} {[%emt 00:03:30]} 19.
cxb3 {[%clk 00:56:21]} {[%emt 00:00:12]} Rc6 {[%clk 00:34:24]} {[%emt
00:02:27]} 20. a4 {[%clk 00:55:47]} {[%emt 00:01:04]} e5 {[%clk 00:26:34]}
{[%emt 00:08:20]} 21. g5 {[%clk 00:52:51]} {[%emt 00:03:26]} Nd7 {[%clk
00:26:44]} {[%emt 00:00:20]} 22. Qd5 {[%clk 00:52:01]} {[%emt 00:01:21]} Qa6
{[%clk 00:24:00]} {[%emt 00:03:13]} 23. Rc1 {[%clk 00:40:56]} {[%emt 00:11:35]}
Rac8 {[%clk 00:24:06]} {[%emt 00:00:23]} 24. Rxc6 {[%clk 00:41:11]} {[%emt
00:00:16]} Rxc6 {[%clk 00:24:30]} {[%emt 00:00:05]} 25. Rc1 {[%clk 00:41:27]}
{[%emt 00:00:14]} Nb8 {[%clk 00:12:34]} {[%emt 00:12:25]} 26. Qb5 {[%clk
00:40:27]} {[%emt 00:01:30]} Qc8 {[%clk 00:09:57]} {[%emt 00:03:08]} 27. Bxa7
{[%clk 00:40:29]} {[%emt 00:00:28]} Rxc1+ {[%clk 00:10:01]} 28. Nxc1 {[%clk
00:40:58]} {[%emt 00:00:28]} Nc6 {[%clk 00:10:08]} {[%emt 00:00:23]} 29. Be3
{[%clk 00:41:07]} {[%emt 00:00:20]} Nd4 {[%clk 00:10:00]} {[%emt 00:00:38]} 30.
Bxd4 {[%clk 00:38:10]} {[%emt 00:03:28]} exd4 {[%clk 00:10:29]} {[%emt
00:00:01]} 31. a5 {[%clk 00:38:19]} {[%emt 00:00:21]} d3 {[%clk 00:09:57]}
{[%emt 00:01:01]} 32. Nxd3 {[%clk 00:38:31]} {[%emt 00:00:18]} Qxh3 {[%clk
00:09:21]} {[%emt 00:01:06]} 33. a6 {[%clk 00:36:59]} {[%emt 00:02:02]} Qf1+
{[%clk 00:08:11]} {[%emt 00:01:40]} 34. Ka2 {[%clk 00:37:13]} {[%emt 00:00:16]}
Bd4 {[%clk 00:08:13]} {[%emt 00:00:27]} 35. Qc4 {[%clk 00:32:03]} {[%emt
00:05:41]} Qg1 {[%clk 00:04:44]} {[%emt 00:04:00]} 36. Nxb4 {[%clk 00:28:41]}
{[%emt 00:03:51]} h4 {[%clk 00:04:32]} {[%emt 00:00:42]} 37. Nc6 {[%clk
00:27:33]} {[%emt 00:01:38]} Bb6 {[%clk 00:04:19]} {[%emt 00:00:42]} 38. Ne7+
{[%clk 00:18:08]} {[%emt 00:09:56]} Kf8 {[%clk 00:04:19]} {[%emt 00:00:30]} 39.
Nc8 {[%clk 00:17:14]} {[%emt 00:01:24]} Qc5 {[%clk 00:01:53]} {[%emt 00:02:55]}
40. Qxc5 {[%clk 00:15:33]} {[%emt 00:02:10]} Bxc5 {[%clk 00:02:14]} {[%emt
00:00:09]} 41. b4 {[%clk 00:15:59]} {[%emt 00:00:04]} Bd4 {[%clk 00:01:02]}
{[%emt 00:01:43]} 42. b5 {[%clk 00:16:25]} {[%emt 00:00:04]} h3 {[%clk
00:00:59]} {[%emt 00:00:32]} 43. b6 {[%clk 00:16:51]} {[%emt 00:00:04]} h2
{[%clk 00:01:25]} {[%emt 00:00:05]} 44. b7 {[%clk 00:17:13]} {[%emt 00:00:08]}
h1=Q {[%clk 00:01:32]} {[%emt 00:00:23]} 45. b8=Q {[%clk 00:17:34]} {[%emt
00:00:09]} Qd1 {[%clk 00:01:09]} {[%emt 00:00:53]} 46. Nxd6+ {[%clk 00:14:51]}
{[%emt 00:03:13]} Kg7 {[%clk 00:01:38]} 47. Qb3 {[%clk 00:14:59]} {[%emt
00:00:22]} Qe2 {[%clk 00:01:40]} {[%emt 00:00:28]} 48. Qxf7+ {[%clk 00:14:40]}
{[%emt 00:00:49]} Kh8 {[%clk 00:02:09]} 49. Qb7 {[%clk 00:14:49]} {[%emt
00:00:21]} Qc2 {[%clk 00:01:15]} {[%emt 00:01:24]} 50. Nf7+ {[%clk 00:15:09]}
{[%emt 00:00:10]} Kg8 {[%clk 00:01:14]} {[%emt 00:00:31]} 51. Nh6+ {[%clk
00:15:34]} {[%emt 00:00:04]} 1-0